{"text_format":"1","workbook":"xlsx","n_sheets":2,"sheets":["Slope Card","Sheet1"],"not_rendered":{"charts":0,"images":0,"macros":1,"external_links":0,"defined_names":2,"comments":0,"pivot_tables":0},"unopened":[],"bounds":{"document_bytes":16777216,"sheet_cells":100000,"rows_first":2000,"rows_last":500,"rows_between":2000,"halvings":0,"cell_chars":16384,"cell_head_chars":4096},"cells_cut":0,"cells_raw":0,"read":"whole","date_system":"1900"}

{"sheet":"Slope Card","index":0,"n_rows":13,"n_cols":17,"rows_kept":13,"cut":false,"hidden":false,"merged":[[1,13,2,16]]}
[]
[null,null,"Create your own Slope Card",null,null,null,null,null,null,null,null,null,null,"Add new map details \"below\" this list\nDon't leave any empty spaces / rows.\nTo delete a map Rick Click - Delete - Table Row"]
[]
[null,null,null,null,null,"Select\nMap Type","Scale","Contour","Units","Angle","Set Row \nHeight to","Extra distance\nover 100 m/ft",null,"Map Type","Scale","Contour","Units"]
[null,null,"Select Map Type -->",null,null,null,{"$f":"IFERROR(_xlfn.XLOOKUP(F5,MapData[Map Type],MapData[Scale]),\"\")","v":0},{"$f":"IFERROR(_xlfn.XLOOKUP(F5,MapData[Map Type],MapData[Contour]),\"\")","v":0},{"$f":"IFERROR(IF(_xlfn.XLOOKUP(F5,MapData[Map Type],MapData[Units])=\"ft\",H5*0.3048,H5),\"\")","v":0},5,{"$f":"IFERROR(ROUND((($I$5*5)/(TAN(RADIANS(J5))*$G$5))*2834.65,2),\"\")","v":""},{"$f":"IFERROR(ROUND((100/COS(RADIANS(J5)))-100,1),\"\")","v":0.4}]
[null,null,null,null,null,null,null,null,null,10,"",1.5]
[null,null,null,null,null,null,null,null,null,15,"",3.5,null,"OS Explorer",25000,5,"m"]
[null,null,null,null,null,null,null,null,null,20,"",6.4,null,"OS Landranger",50000,10,"m"]
[null,null,null,null,null,null,null,null,null,25,"",10.3,null,"USGS 7.5 min",24000,40,"ft"]
[null,null,null,null,null,null,null,null,null,30,"",15.5,null,"USGS 15 min",62500,80,"ft"]
[null,null,null,null,null,null,null,null,null,35,"",22.1,null,"Military 1:50k",50000,20,"m"]
[null,null,null,null,null,null,null,null,null,40,"",30.5,null,"1 inch mile",63360,100,"ft"]
[null,null,null,null,null,null,null,null,null,45,"",41.4]

{"sheet":"Sheet1","index":1,"n_rows":3,"n_cols":4,"rows_kept":3,"cut":false,"hidden":false,"merged":[]}
["Harvey",40000,15,"m"]
["IGN France",25000,10,"m"]
["Swisstopo",50000,20,"m"]